bitfinex/quotes_SOLUSD_20250819
["timestamp","ask_amount","ask_price","bid_price","bid_amount"]
[1755581192556,13.26159259,180.07,180.03,0.67]
[1755581192735,13.26159259,180.07,180.02,39.56]
[1755581193057,13.26159259,180.07,180.02,40.23]
[1755581193251,12.58159259,180.06,180.02,40.23]
[1755581194052,12.58159259,180.06,180.02,39.56]
[1755581194263,12.58159259,180.07,180.03,0.67]
[1755581194654,145.28159259,180.08,180.04,0.67]
[1755581194839,145.96159259,180.08,180.04,0.67]
[1755581195648,132.7,180.08,180.04,13.25159259]
[1755581195843,132.7,180.08,180.04,12.58159259]
[1755581196066,0.68,180.07,180.04,12.58159259]
[1755581196360,0.68,180.07,180.03,12.58159259]
[1755581196540,0.68,180.07,180.03,13.25159259]
[1755581197065,12.58159259,180.07,180.02,39.56]
[1755581197363,0.68,180.06,180.02,39.56]
[1755581198440,0.68,180.06,180.02,40.24]
[1755581198843,12.58159259,180.07,180.02,52.14159259]
[1755581199039,146.00159259,180.08,180.03,0.68]
[1755581199256,146.00159259,180.08,180.03,12.58159259]
[1755581199456,132.7,180.08,180.04,13.26159259]
[1755581199762,0.72,180.07,180.02,39.56]
[1755581199969,13.30159259,180.07,180.02,39.56]
[1755581200162,0.72,180.06,180.02,39.56]
[1755581200671,0.72,180.05,180.02,39.56]
[1755581201165,132.7,180.04,180.02,39.56]
[1755581207578,132.7,180.04,180.02,40.24]
[1755581207875,132.7,180.09,180.03,28.36780816]
[1755581208055,0.75,180.1,180.05,12.58159259]
[1755581208056,132.7,180.08,180.05,12.58159259]
[1755581208244,132.7,180.08,180.06,40.2]
[1755581208444,132.7,180.08,180.06,39.52]
[1755581210178,133.42,180.08,180.06,39.52]
[1755581210387,132.7,180.08,180.06,39.52]
[1755581211653,132.7,180.08,180.06,40.2]
[1755581212380,132.7,180.08,180.06,39.52]
[1755581212588,0.75,180.1,180.06,39.52]
[1755581212589,0.03,180.1,180.07,8.76658637]
[1755581212791,0.03,180.1,180.09,8.08658637]
[1755581213075,0.03,180.1,180.09,47.60658637]
[1755581213258,0.03,180.1,180.09,39.52]
[1755581214084,0.03,180.1,180.09,40.2]
[1755581215272,0.03,180.1,180.09,48.28658637]
[1755581217459,0.03,180.1,180.09,68.9455811]
[1755581218390,0.03,180.1,180.09,63.39280194]
[1755581220605,0.03,180.1,180.09,15.10621557]
[1755581220894,0.03,180.1,180.09,54.60621557]
[1755581221264,0.03,180.1,180.09,39.5]
[1755581222692,0.03,180.1,180.09,63.37280194]
[1755581223054,0.03,180.1,180.09,68.9255811]
[1755581226497,0.03,180.12,180.11,41.10621557]
[1755581226699,0.03,180.12,180.11,88.69280194]
[1755581226896,0.03,180.12,180.11,89.37280194]
[1755581228087,0.03,180.12,180.11,97.45938831]
[1755581228282,0.03,180.12,180.11,89.37280194]
[1755581228588,0.03,180.12,180.11,94.9249645]
[1755581229470,0.03,180.14,180.12,15.10621557]
[1755581229691,0.03,180.14,180.13,62.69280194]
[1755581229890,0.03,180.14,180.13,89.40280194]
[1755581230494,0.03,180.14,180.13,94.95434804]
[1755581231789,0.03,180.14,180.13,86.86776167]
[1755581232002,0.03,180.14,180.13,88.69280194]
[1755581232197,0.03,180.14,180.13,62.69280194]
[1755581232198,0.7,180.14,180.13,62.69280194]
[1755581232396,0.03,180.14,180.13,62.69280194]
[1755581232799,0.03,180.14,180.13,54.60621557]
[1755581232800,0.7,180.14,180.13,54.60621557]
[1755581233706,0.03,180.14,180.13,63.40280194]
[1755581233909,0.03,180.14,180.13,68.95434804]
[1755581234120,0.03,180.14,180.13,62.69280194]
[1755581235686,0.03,180.14,180.13,68.95434804]
[1755581239917,0.03,180.16,180.15,26.0]
[1755581240106,0.03,180.18,180.17,49.19280194]
[1755581240414,0.03,180.18,180.17,88.67280194]
[1755581240817,0.03,180.18,180.17,94.93311553]
[1755581241315,0.03,180.2,180.18,15.10621557]
[1755581241489,0.03,180.2,180.19,62.67280194]
[1755581241689,0.03,180.2,180.19,63.38280194]
[1755581242895,0.03,180.2,180.19,68.93249948]
[1755581244312,0.67,180.29,180.2,15.10621557]
[1755581244625,0.67,180.29,180.21,88.65280194]
[1755581245005,0.67,180.29,180.21,94.91188356]
[1755581245525,342.9,180.33,180.21,46.65529719]
[1755581245526,8.08658637,180.27,180.21,46.65529719]
[1755581245691,0.7,180.22,180.21,62.65280194]
[1755581245893,0.03,180.22,180.21,68.91188356]
[1755581246317,0.03,180.22,180.21,68.20188356]
[1755581246518,0.03,180.22,180.21,62.65280194]
[1755581247720,0.03,180.22,180.21,68.20188356]
[1755581247895,0.03,180.22,180.21,68.91188356]
[1755581248603,1e-08,180.22,180.21,94.91188356]
[1755581248821,0.03,180.24,180.23,15.10621557]
[1755581249009,0.03,180.24,180.23,68.20126778]
[1755581249194,0.03,180.24,180.23,68.91126778]
[1755581249397,0.03,180.26,180.24,15.10621557]
[1755581249594,0.03,180.26,180.25,54.64621557]
[1755581250402,0.03,180.26,180.25,63.44280194]
[1755581250598,0.03,180.26,180.25,68.99065214]
[1755581250990,0.03,180.26,180.25,60.19406577]
[1755581251196,0.03,180.26,180.25,68.28065214]
[1755581251503,0.03,180.26,180.25,68.99065214]
[1755581256532,0.03,180.26,180.25,60.90406577]
[1755581256698,0.03,180.26,180.25,68.99065214]
[1755581257215,0.03,180.26,180.25,54.64621557]
[1755581257428,0.7,180.26,180.25,15.10621557]
[1755581257605,0.7,180.26,180.25,54.58621557]
[1755581257926,0.03,180.26,180.25,62.67280194]
[1755581258102,0.03,180.26,180.25,68.22065214]
[1755581258507,0.03,180.26,180.25,68.88065214]
[1755581259413,0.03,180.26,180.25,60.79406577]
[1755581259614,0.03,180.26,180.25,68.88065214]
[1755581261621,0.67,180.37,180.33,15.10621557]
[1755581261805,8.08658637,180.42,180.37,15.10621557]
[1755581262009,8.08658637,180.41,180.37,54.64621557]
[1755581262208,8.08658637,180.42,180.37,54.64621557]
[1755581262422,5.3575,180.38,180.37,62.73280194]
[1755581263113,5.3575,180.38,180.37,54.64621557]
[1755581263448,5.3575,180.38,180.37,62.73280194]
[1755581263809,5.3575,180.38,180.37,54.64621557]
[1755581264018,5.3575,180.38,180.31,22.21491659]
[1755581264345,0.67,180.37,180.35,15.10621557]
[1755581264530,0.67,180.37,180.36,54.64621557]
[1755581264913,0.67,180.37,180.34,8.08658637]
[1755581264914,0.67,180.37,180.33,8.08658637]
[1755581265129,8.08658637,180.36,180.34,39.58]
[1755581265443,0.67,180.35,180.34,39.58]
[1755581265953,0.67,180.35,180.34,54.68621557]
[1755581266443,0.67,180.37,180.35,15.10621557]
[1755581266659,4.6875,180.38,180.36,39.58]
[1755581267338,8.75658637,180.37,180.36,39.58]
[1755581267539,0.67,180.37,180.36,39.58]
[1755581269142,0.67,180.37,180.36,54.68621557]
[1755581270046,0.7,180.37,180.36,54.68621557]
[1755581270645,8.78658637,180.37,180.36,39.58]
[1755581271620,0.7,180.37,180.36,39.58]
[1755581272147,0.7,180.37,180.36,54.68621557]
[1755581273156,0.03,180.37,180.36,54.68621557]
[1755581273520,0.7,180.37,180.36,54.68621557]
[1755581274815,0.7,180.37,180.36,39.58]
[1755581275028,8.78658637,180.37,180.36,39.58]
[1755581275224,0.7,180.37,180.36,39.58]
[1755581275425,0.03,180.37,180.36,39.58]
[1755581276024,0.7,180.37,180.36,39.58]
[1755581277453,0.03,180.37,180.36,39.58]
[1755581278221,0.03,180.37,180.36,63.43280194]
[1755581278754,0.03,180.37,180.36,68.97726856]
[1755581280222,0.03,180.37,180.36,15.10621557]
[1755581280424,0.7,180.37,180.36,39.58]
[1755581280654,0.03,180.37,180.36,39.58]
[1755581281342,0.7,180.37,180.36,39.58]
[1755581282054,8.78658637,180.37,180.36,39.58]
[1755581282573,8.78658637,180.37,180.28,5.546927]
[1755581282724,8.08658637,180.32,180.27,15.76621557]
[1755581282927,8.75658637,180.31,180.29,15.10621557]
[1755581283127,0.67,180.31,180.3,54.68621557]
[1755581283350,8.08658637,180.32,180.3,54.70621557]
[1755581283729,8.75658637,180.32,180.3,54.70621557]
[1755581284232,8.08658637,180.34,180.3,54.70621557]
[1755581284432,8.75658637,180.34,180.3,54.70621557]
[1755581285632,8.75658637,180.33,180.3,54.70621557]
[1755581286556,0.67,180.35,180.3,54.70621557]
[1755581286730,34.08658637,180.34,180.3,55.36621557]
[1755581286938,34.75658637,180.34,180.3,55.36621557]
[1755581287331,34.08658637,180.34,180.3,54.70621557]
[1755581287533,8.08658637,180.31,180.3,39.6]
[1755581287748,8.75658637,180.31,180.3,39.6]
[1755581289068,34.75658637,180.31,180.3,39.6]
[1755581289266,26.0,180.31,180.3,39.6]
[1755581289441,34.78658637,180.31,180.3,39.6]
[1755581289964,26.0,180.31,180.3,39.6]
[1755581290560,34.08658637,180.31,180.3,39.6]
[1755581290865,8.08658637,180.32,180.3,39.6]
[1755581294334,8.78658637,180.31,180.26,15.16621557]
[1755581294565,8.08658637,180.29,180.27,39.58]
[1755581294790,8.78658637,180.29,180.27,39.58]
[1755581294968,8.08658637,180.28,180.27,54.68621557]
[1755581295336,8.08658637,180.28,180.26,0.06]
[1755581295536,8.78658637,180.28,180.27,39.58]
[1755581295763,8.08658637,180.28,180.27,39.58]
[1755581295968,8.08658637,180.29,180.27,39.58]
[1755581296640,140.78658637,180.28,180.27,39.58]
[1755581296868,141.48658637,180.28,180.27,39.58]
[1755581297053,141.48658637,180.28,180.26,0.06]
[1755581297054,145.63075123,180.28,180.26,0.06]
[1755581297253,141.48658637,180.27,180.26,0.06]
[1755581297445,8.78658637,180.27,180.26,0.06]
[1755581297759,12.92900568,180.27,180.26,0.06]
[1755581298267,8.78658637,180.27,180.26,0.06]
[1755581302362,12.92161578,180.27,180.26,0.06]
[1755581302575,12.92161578,180.27,180.24,0.06]
[1755581302576,26.0,180.25,180.24,0.06]
[1755581302784,41.94846481,180.25,180.24,0.06]
[1755581302982,42.64846481,180.25,180.24,0.06]
[1755581303183,38.92161578,180.25,180.24,0.06]
[1755581304261,34.78658637,180.25,180.24,0.06]
[1755581304577,8.08658637,180.25,180.24,0.06]
[1755581304891,8.78658637,180.25,180.24,0.06]
[1755581305092,0.7,180.25,180.24,0.06]
[1755581305384,8.78658637,180.25,180.24,0.06]
[1755581306481,0.7,180.25,180.24,0.06]
[1755581306686,140.78658637,180.26,180.24,0.06]
[1755581307265,166.78658637,180.26,180.24,0.06]
[1755581307575,166.78658637,180.26,180.24,0.78]
[1755581307576,132.7,180.26,180.24,0.78]
[1755581307761,132.7,180.26,180.25,8.80658637]
[1755581309824,132.7,180.26,180.25,23.91280194]
[1755581310759,132.7,180.26,180.25,29.46065214]
[1755581311993,26.03,180.29,180.26,15.10621557]
[1755581312157,26.03,180.29,180.28,8.08658637]
[1755581312357,26.03,180.29,180.27,40.28]
[1755581312573,26.03,180.29,180.28,8.08658637]
[1755581314301,26.73,180.29,180.24,15.16621557]
[1755581314469,0.7,180.28,180.25,39.56]
[1755581314669,26.03,180.29,180.25,39.56]
[1755581314870,0.7,180.27,180.25,39.54]
[1755581315173,34.81658637,180.29,180.25,39.54]
[1755581315693,0.7,180.28,180.25,39.54]
[1755581317192,26.0,180.26,180.25,39.54]
[1755581317997,132.7,180.27,180.25,48.34658637]
[1755581318304,132.7,180.27,180.26,8.08658637]
[1755581318595,132.7,180.27,180.26,8.80658637]
[1755581319896,0.03,180.29,180.27,15.10621557]
[1755581320114,0.03,180.28,180.27,15.10621557]
[1755581320284,0.03,180.28,180.27,55.36621557]
[1755581321181,0.03,180.28,180.27,63.45280194]
[1755581322685,0.03,180.29,180.27,68.99993476]
[1755581322904,0.03,180.29,180.28,23.91280194]
[1755581324209,0.03,180.29,180.28,29.45972894]
[1755581325811,0.03,180.29,180.28,31.68287794]
[1755581329607,0.03,180.29,180.28,26.13595094]
[1755581329783,0.03,180.29,180.28,31.68287794]
[1755581330811,0.03,180.29,180.28,26.13595094]
[1755581331918,0.03,180.29,180.28,31.68287794]
[1755581334500,0.03,180.31,180.29,15.10621557]
[1755581334698,0.03,180.31,180.3,62.65280194]
[1755581334903,0.03,180.31,180.3,63.37280194]
[1755581335216,0.03,180.35,180.32,23.19280194]
[1755581335425,0.03,180.35,180.32,62.65280194]
[1755581335617,0.03,180.35,180.32,63.37280194]
[1755581336012,0.03,180.35,180.32,80.04363594]
[1755581336807,0.69,180.34,180.32,31.77704957]
[1755581337127,0.72,180.33,180.32,62.65280194]
[1755581337320,0.72,180.33,180.32,54.56621557]
[1755581337705,0.72,180.33,180.32,62.65280194]
[1755581338607,0.72,180.33,180.32,54.56621557]
[1755581339902,0.03,180.33,180.32,62.65280194]
[1755581340638,0.72,180.33,180.32,62.65280194]
[1755581340804,0.72,180.33,180.32,54.56621557]
[1755581341128,8.80658637,180.33,180.32,39.46]
[1755581342009,8.80658637,180.33,180.28,0.06]
[1755581342218,8.08658637,180.3,180.29,39.46]
[1755581342422,8.77658637,180.3,180.29,39.46]
[1755581342940,8.77658637,180.3,180.28,0.06]
[1755581343243,26.69,180.29,180.28,39.52]
[1755581343406,34.77658637,180.29,180.28,39.52]
[1755581343598,26.69,180.29,180.28,39.52]
[1755581343915,34.77658637,180.29,180.28,39.52]
[1755581344230,132.7,180.32,180.28,39.52]
[1755581344532,0.69,180.31,180.28,39.52]
[1755581345101,158.7,180.32,180.29,15.10621557]
[1755581345328,159.39,180.32,180.3,39.48]
[1755581346006,158.7,180.32,180.3,39.48]
[1755581347141,0.03,180.33,180.31,23.91280194]
[1755581347324,0.03,180.33,180.32,62.65280194]
[1755581348018,0.03,180.33,180.32,54.56621557]
[1755581348217,0.72,180.33,180.32,39.46]
[1755581348820,0.03,180.33,180.32,39.46]
[1755581349129,0.72,180.33,180.32,39.46]
[1755581352231,0.03,180.33,180.32,39.46]
[1755581353833,0.72,180.33,180.32,39.46]
[1755581355131,8.80658637,180.33,180.32,39.46]
[1755581356231,12.95111767,180.33,180.32,39.46]
[1755581356433,158.7,180.32,180.31,0.06]
[1755581356729,175.35171749,180.32,180.31,0.06]
[1755581356936,174.66171749,180.32,180.31,0.06]
[1755581357139,175.35171749,180.32,180.31,0.06]
[1755581359712,166.57513112,180.32,180.31,0.06]
[1755581360027,158.7,180.32,180.31,0.06]
[1755581360758,0.03,180.33,180.32,15.10621557]
[1755581361037,0.03,180.33,180.32,23.85280194]
[1755581366447,0.03,180.33,180.32,15.76621557]
[1755581366628,0.03,180.33,180.32,23.85280194]
[1755581368738,0.03,180.33,180.32,15.76621557]
[1755581368941,0.72,180.33,180.32,54.56621557]
[1755581369121,0.72,180.33,180.32,39.46]
[1755581369865,8.80658637,180.33,180.32,39.46]
[1755581370816,0.03,180.33,180.32,48.20658637]
[1755581372024,0.03,180.33,180.32,63.31280194]
[1755581372843,0.03,180.33,180.32,39.46]
[1755581373145,8.80658637,180.33,180.32,39.46]
[1755581373437,8.11658637,180.33,180.32,39.46]
[1755581373864,8.80658637,180.33,180.32,39.46]
[1755581374335,16.68863385,180.33,180.32,39.46]
[1755581375658,16.68863385,180.33,180.31,0.06]
[1755581375955,149.35863385,180.32,180.31,0.06]
[1755581377340,149.35758677,180.32,180.31,0.06]
[1755581380039,149.35569735,180.32,180.31,0.06]
[1755581381055,149.35549317,180.32,180.31,0.06]
[1755581382841,132.58,180.29,180.28,0.06]
[1755581383043,148.54549317,180.29,180.28,0.06]
[1755581383268,149.26549317,180.29,180.28,0.06]
[1755581385947,148.54549317,180.29,180.28,0.06]
[1755581386763,140.4589068,180.29,180.28,0.06]
[1755581387061,132.58,180.29,180.28,0.75]
[1755581387445,132.58,180.29,180.28,8.83658637]
[1755581387657,0.03,180.33,180.29,15.10621557]
[1755581387964,7.89719855,180.33,180.3,8.77658637]
[1755581388268,26.0,180.32,180.31,0.69]
[1755581388454,26.0,180.32,180.3,8.08658637]
[1755581389267,26.0,180.32,180.31,0.69]
[1755581392530,34.08658637,180.32,180.29,39.46]
[1755581392730,34.08658637,180.31,180.29,39.46]
[1755581393260,26.0,180.31,180.29,39.46]
[1755581393558,26.0,180.31,180.3,0.69]
[1755581394751,26.0,180.31,180.29,39.46]
[1755581395066,34.75658637,180.31,180.29,39.46]
[1755581395464,26.0,180.31,180.3,0.69]
[1755581396148,0.03,180.33,180.3,0.69]
[1755581396473,15.98530752,180.33,180.3,0.69]
[1755581396665,0.03,180.33,180.3,0.69]
[1755581396972,8.11658637,180.33,180.3,0.69]
[1755581397343,8.08658637,180.32,180.29,39.46]
[1755581397537,8.08658637,180.32,180.29,40.15]
[1755581398439,4.47732334,180.33,180.29,40.15]
[1755581398640,11.84390971,180.33,180.3,0.69]
[1755581398860,11.84390971,180.33,180.31,0.69]
[1755581398861,26.0,180.32,180.31,0.69]
[1755581399545,26.0,180.32,180.29,39.46]
[1755581399748,26.0,180.32,180.29,40.15]
[1755581400053,26.0,180.32,180.3,0.69]
[1755581400458,26.0,180.32,180.29,39.46]
[1755581400665,0.03,180.33,180.32,15.10621557]
[1755581400864,0.03,180.33,180.32,23.88280194]
[1755581401783,0.03,180.33,180.32,63.34280194]
[1755581402156,0.03,180.33,180.32,39.46]
[1755581402851,0.03,180.33,180.32,55.25621557]
[1755581403056,0.03,180.33,180.32,63.34280194]
[1755581404079,0.03,180.33,180.32,39.46]
[1755581404756,34.83658637,180.33,180.32,39.46]
[1755581404963,26.75,180.33,180.32,39.46]
[1755581405169,34.83658637,180.33,180.32,39.46]
[1755581405878,34.83658637,180.33,180.28,0.06]
[1755581406064,0.72,180.32,180.29,39.46]
[1755581406250,26.0,180.29,180.28,0.06]
[1755581406452,38.5342922,180.29,180.28,0.06]
[1755581406772,42.6766652,180.29,180.28,0.06]
[1755581407166,42.67671509,180.29,180.28,0.06]
[1755581407385,48.22333442,180.29,180.27,0.06]
[1755581407571,16.67671509,180.28,180.27,0.06]
[1755581408451,18.01323688,180.28,180.26,0.06]
[1755581408649,13.56553105,180.27,180.26,0.06]
[1755581408977,23.55068306,180.27,180.24,0.06]
[1755581409284,23.55068306,180.27,180.21,0.06]
[1755581409285,45.42310816,180.25,180.21,0.06]
[1755581409447,26.0,180.21,180.2,0.06]
[1755581409650,47.95958941,180.21,180.19,0.06]
[1755581409907,8.58066832,180.2,180.19,0.06]
[1755581410051,17.29377648,180.2,180.19,0.06]
[1755581410250,13.56607065,180.2,180.19,0.06]
[1755581410474,14.27607065,180.2,180.19,0.06]
[1755581410678,18.00377648,180.2,180.19,0.06]
[1755581410855,30.85296249,180.2,180.19,0.06]
[1755581411064,43.29377648,180.2,180.19,0.06]
[1755581411283,35.42310816,180.2,180.19,0.06]
[1755581412878,26.0,180.24,180.19,0.73]
[1755581413081,9.42310816,180.25,180.2,9.42310816]
[1755581413281,9.42310816,180.26,180.21,0.67]
[1755581413603,9.42310816,180.25,180.22,0.67]
[1755581414177,26.0,180.23,180.22,0.67]
[1755581414372,9.42310816,180.25,180.22,0.67]
[1755581414597,26.0,180.23,180.22,0.67]
[1755581415388,26.0,180.23,180.2,0.67]
[1755581415781,142.00310816,180.27,180.21,10.09310816]
[1755581415989,142.00310816,180.27,180.22,10.09310816]
[1755581416294,142.00310816,180.27,180.23,0.67]
[1755581416600,168.00310816,180.27,180.23,0.67]
[1755581416995,9.42310816,180.25,180.21,0.67]
[1755581417299,9.42310816,180.25,180.22,0.67]
[1755581418089,26.0,180.24,180.22,0.67]
[1755581420376,26.0,180.24,180.23,0.67]
[1755581421409,142.03310816,180.27,180.19,0.06]
[1755581421584,10.13310816,180.24,180.2,0.73]
[1755581421775,26.71,180.24,180.2,0.06]
[1755581421981,26.74,180.24,180.2,0.73]
[1755581422384,26.74,180.24,180.2,0.06]
[1755581422997,26.74,180.24,180.2,0.73]
[1755581424303,26.03,180.24,180.2,0.73]
[1755581424611,26.03,180.24,180.21,0.67]
[1755581426510,26.03,180.24,180.23,15.10621557]
[1755581426684,0.03,180.24,180.23,25.19932373]
[1755581426889,0.03,180.24,180.23,15.77621557]
[1755581427089,0.03,180.24,180.23,25.19932373]
[1755581429394,0.03,180.24,180.23,30.74778957]
[1755581430716,0.03,180.24,180.23,21.32468141]
[1755581430894,0.03,180.24,180.23,30.74778957]
[1755581432502,0.03,180.26,180.25,24.52932373]
[1755581432828,0.03,180.26,180.25,63.98932373]
[1755581433130,0.03,180.26,180.25,64.65932373]
[1755581434107,0.03,180.26,180.25,70.20717393]
[1755581434314,0.03,180.26,180.25,66.83281665]
[1755581440028,0.03,180.26,180.25,69.05608865]
[1755581442224,0.03,180.3,180.26,15.10621557]
[1755581442424,0.03,180.3,180.29,21.15496645]
[1755581442726,0.03,180.3,180.29,60.59496645]
[1755581442925,0.03,180.3,180.29,61.27496645]
[1755581444015,0.03,180.3,180.29,66.82158578]
[1755581444736,0.03,180.3,180.29,66.14158578]
[1755581445733,0.03,180.3,180.29,66.82158578]
[1755581450532,0.03,180.3,180.29,95.04448678]
[1755581451340,0.03,180.3,180.29,69.04448678]
[1755581455320,0.03,180.32,180.31,47.15496645]
[1755581455517,0.03,180.32,180.31,86.59496645]
[1755581455731,0.03,180.32,180.31,87.27496645]
[1755581456038,0.03,180.32,180.31,89.49749745]
[1755581456211,0.03,180.32,180.31,95.04350155]
[1755581458040,0.03,180.34,180.32,15.10621557]
[1755581458335,0.03,180.34,180.33,60.57496645]
[1755581458550,0.03,180.35,180.34,15.10621557]
[1755581458734,0.03,180.35,180.34,21.83496645]
[1755581459966,0.03,180.35,180.34,53.38004796]
[1755581460427,0.03,180.35,180.34,52.70004796]
[1755581460626,0.03,180.35,180.34,66.12004796]
[1755581460826,0.03,180.35,180.34,68.34233196]
[1755581461331,0.71,180.35,180.34,66.12004796]
[1755581461844,0.03,180.35,180.34,66.12004796]
[1755581462044,0.03,180.35,180.34,92.12004796]
[1755581462712,0.03,180.35,180.34,66.80004796]
[1755581463116,0.03,180.39,180.37,41.10621557]
[1755581463427,0.68,180.44,180.42,41.10621557]
[1755581463627,0.68,180.44,180.42,86.57496645]
[1755581463828,0.78,180.43,180.42,86.57496645]
[1755581464028,0.78,180.43,180.42,60.57496645]
[1755581464633,0.78,180.43,180.36,31.544383]
[1755581464968,0.78,180.43,180.39,15.10621557]
[1755581465165,0.78,180.43,180.41,15.10621557]
[1755581465324,0.78,180.43,180.42,54.52621557]
[1755581466718,0.78,180.43,180.42,39.42]
[1755581466967,6.82875088,180.43,180.42,39.42]
[1755581467125,0.78,180.43,180.42,39.42]
[1755581467451,6.82875088,180.43,180.42,39.42]
[1755581467756,32.82875088,180.43,180.32,0.68]
[1755581467934,32.82875088,180.43,180.33,45.46875088]
[1755581467935,6.04875088,180.38,180.33,45.46875088]
[1755581468140,0.7,180.37,180.34,45.46875088]
[1755581468331,0.7,180.36,180.35,15.10621557]
[1755581472175,6.04875088,180.39,180.35,21.15496645]
[1755581472176,0.7,180.39,180.35,21.15496645]
[1755581472364,0.7,180.38,180.36,39.42]
[1755581472540,0.7,180.38,180.36,45.46875088]
[1755581472944,0.7,180.38,180.36,39.42]
[1755581473375,26.0,180.42,180.37,15.10621557]
[1755581473675,133.28,180.41,180.39,21.15496645]
[1755581473971,133.28,180.41,180.4,54.52621557]
[1755581474673,132.58,180.41,180.4,54.52621557]
[1755581474876,132.58,180.41,180.4,60.57496645]
[1755581475442,133.28,180.41,180.4,54.52621557]
[1755581475642,133.28,180.41,180.4,39.42]
[1755581476837,133.28,180.41,180.37,15.10621557]
[1755581477151,0.7,180.4,180.38,39.42]
[1755581477352,138.62875088,180.41,180.38,39.42]
[1755581477353,0.7,180.39,180.38,39.42]
[1755581477675,133.28,180.41,180.38,39.42]
[1755581477850,0.7,180.4,180.38,39.42]
[1755581478346,0.7,180.39,180.38,39.42]
[1755581478861,133.28,180.41,180.38,39.42]
[1755581479068,0.7,180.4,180.38,39.42]
[1755581480363,132.58,180.41,180.38,45.46875088]
[1755581480670,132.58,180.41,180.39,21.15496645]
[1755581480854,132.58,180.41,180.4,39.42]
[1755581481049,133.28,180.41,180.34,0.66]
[1755581481270,0.7,180.4,180.37,15.10621557]
[1755581481462,6.74875088,180.4,180.38,39.42]
[1755581481768,0.7,180.39,180.38,39.42]
[1755581482991,132.58,180.41,180.39,15.10621557]
[1755581483144,132.58,180.41,180.4,60.55496645]
[1755581484852,133.28,180.41,180.4,54.50621557]
[1755581485977,133.28,180.41,180.37,0.66]
[1755581486156,0.7,180.4,180.39,15.10621557]
[1755581487179,0.7,180.4,180.38,39.4]
[1755581487359,138.62875088,180.41,180.38,39.4]
[1755581487684,0.7,180.39,180.38,39.4]
[1755581488061,32.74875088,180.39,180.38,39.4]
[1755581490678,36.89435306,180.39,180.38,39.4]
[1755581490980,36.89435306,180.39,180.36,39.4]
[1755581490981,40.62615168,180.39,180.36,39.4]
[1755581491280,0.7,180.39,180.36,39.4]
[1755581493468,4.84744974,180.39,180.36,39.4]
[1755581493672,0.7,180.39,180.36,39.4]
[1755581493983,4.84746493,180.39,180.36,39.4]
[1755581496291,8.58205592,180.39,180.36,39.4]
[1755581496490,4.43459099,180.39,180.36,39.4]
[1755581498875,6.04875088,180.37,180.36,39.4]
[1755581499073,6.70875088,180.37,180.36,39.4]
[1755581499279,10.85914542,180.37,180.36,39.4]
[1755581499475,14.59510519,180.37,180.36,39.4]
[1755581500195,14.5950523,180.37,180.36,39.4]
[1755581500569,14.5950523,180.37,180.34,39.43]
[1755581500793,6.70875088,180.36,180.34,39.43]
[1755581501369,0.66,180.36,180.34,39.43]
[1755581501684,6.70875088,180.36,180.34,39.43]
[1755581503097,3.73595977,180.37,180.34,39.43]